[Event "1st Bangalore GM-Open-A 2024"]
[Site "Bangalore"]
[Date "2024.01.18"]
[Round "1.33"]
[White "Viani Antonio Dcunha"]
[Black "Vrashank Chouhan"]
[Result "1-0"]
[ECO "C07"]
[WhiteElo "2407"]
[BlackElo "2046"]
[Annotator "RC"]
[PlyCount "113"]
[EventDate "2024.01.20"]
[EventType "swiss"]
[EventCountry "IND"]
[SourceTitle "playchess.com"]
[Source "ChessBase"]
[SourceQuality "1"]
[TimeControl "5400+30"]

1. e4 {[%emt 0:00:09]} e6 {[%emt 0:00:21]} 2. d4 {[%emt 0:00:08]} d5 {[%emt 0:00:05]} 3. Nd2 {[%emt 0:00:05]} c5 {[%emt 0:01:20]} 4. exd5 {[%emt 0:00:11]} Qxd5 {[%emt 0:00:02]} 5. Ngf3 {[%emt 0:00:19]} cxd4 {[%emt 0:00:20]} 6. Bc4 {[%emt 0:00:13]} Qd6 {[%emt 0:00:07]} 7. O-O {[%emt 0:00:28]} Nf6 {[%emt 0:00:24]} 8. Qe2 {[%emt 0:00:55]} Nc6 {[%emt 0:01:21]} 9. Rd1 {[%emt 0:00:36]} Be7 {[%emt 0:04:40]} 10. Bb5 {[%emt 0:11:53]} Bd7 {[%emt 0:22:31]} 11. Nb3 {[%emt 0:02:37]} O-O {[%emt 0:07:39]} 12. Nbxd4 {[%emt 0:08:05]} Qc7 {[%emt 0:00:50]} 13. Bxc6 {[%emt 0:07:49]} Bxc6 {[%emt 0:00:07]} 14. Ne5 {[%emt 0:00:32]} Be4 {[%emt 0:04:08]} 15. Bf4 {[%emt 0:02:08]} Qb6 {[%emt 0:02:13]} 16. Bg5 {[%emt 0:04:39]} Bg6 {[%emt 0:09:11]} 17. Bxf6 {[%emt 0:03:11]} Bxf6 {[%emt 0:00:03]} 18. Nd7 {[%emt 0:03:21]} Qxb2 {[%emt 0:00:04]} 19. Nxf8 {[%emt 0:01:10]} Rxf8 {[%emt 0:00:18]} 20. Qc4 {[%emt 0:08:45]} Qa3 {[%emt 0:23:01]} 21. c3 {[%emt 0:03:59]} a6 {[%emt 0:02:32]} 22. Qb3 {[%emt 0:19:15]} Qxb3 {[%emt 0:04:16]} 23. axb3 {[%emt 0:01:45]} Rc8 {[%emt 0:00:02]} 24. Ne2 {[%emt 0:07:32]} Bc2 {[%emt 0:03:25]} 25. Rd7 {[%emt 0:00:07]} Bxb3 {[%emt 0:00:05]} 26. Rxb7 {[%emt 0:00:08]} Bc4 {[%emt 0:01:51]} 27. Ng3 {[%emt 0:05:17]} h6 {[%emt 0:03:22]} 28. Ne4 {[%emt 0:02:18]} Be5 {[%emt 0:00:10]} 29. Re1 {[%emt 0:00:41]} Bd5 {[%emt 0:04:19]} 30. Ra7 {[%emt 0:00:57]} f5 {[%emt 0:02:12]} 31. Ng3 {[%emt 0:01:18]} Bxc3 {[%emt 0:01:41]} 32. Rc1 {[%emt 0:00:27]} Rc6 {[%emt 0:00:40]} 33. Ne2 {[%emt 0:00:35]} Be5 {[%emt 0:00:38]} 34. Rxc6 {[%emt 0:00:19]} Bxc6 {[%emt 0:00:02]} 35. Rxa6 {[%emt 0:00:04]} Bd5 {[%emt 0:00:42]} 36. g3 {[%emt 0:01:31]} Kf7 {[%emt 0:01:21]} 37. Ra3 {[%emt 0:01:35]} g5 {[%emt 0:00:43]} 38. Nc3 {[%emt 0:00:34]} Bxc3 {[%emt 0:01:22]} 39. Rxc3 {[%emt 0:00:02]} Kf6 {[%emt 0:01:06]} 40. Kf1 {[%emt 0:00:02]} g4 {[%emt 0:00:42]} 41. Ke2 {[%emt 0:00:09]} Be4 {[%emt 0:00:16]} 42. Ke3 {[%emt 0:00:05]} e5 {[%emt 0:00:44]} 43. Rc8 {[%emt 0:00:21]} Kg5 {[%emt 0:00:28]} 44. Rb8 {[%emt 0:01:00]} Bg2 {[%emt 0:00:34]} 45. Rb5 {[%emt 0:00:17]} Kf6 {[%emt 0:00:08]} 46. Rb6+ {[%emt 0:00:01]} Kg5 {[%emt 0:00:21]} 47. Re6 {[%emt 0:00:21]} f4+ {[%emt 0:00:41]} 48. Kd2 {[%emt 0:00:02]} fxg3 {[%emt 0:00:27]} 49. hxg3 {[%emt 0:00:03]} e4 {[%emt 0:00:50]} 50. Ke3 {[%emt 0:00:02]} Bf3 {[%emt 0:00:32]} 51. Re5+ {[%emt 0:00:09]} Kg6 {[%emt 0:00:17]} 52. Kf4 {[%emt 0:00:03]} Kf6 {[%emt 0:00:29]} 53. Ra5 {[%emt 0:00:30]} Kg7 {[%emt 0:00:43]} 54. Kf5 {[%emt 0:00:12]} Kf7 {[%emt 0:00:33]} 55. Ra7+ {[%emt 0:00:02]} Ke8 {[%emt 0:00:29]} 56. Kg6 {[%emt 0:00:04]} Kd8 {[%emt 0:00:31]} 57. Kxh6 {[%emt 0:00:08]} 1-0

[Event "1st Bangalore GM-Open-A 2024"]
[Site "Bangalore"]
[Date "2024.01.18"]
[Round "1.35"]
[White "De Silva, L M S T"]
[Black "Barath Kalyan M"]
[Result "1-0"]
[ECO "C41"]
[WhiteElo "2398"]
[BlackElo "2040"]
[Annotator "RC"]
[PlyCount "151"]
[EventDate "2024.01.20"]
[EventType "swiss"]
[EventCountry "IND"]
[SourceTitle "playchess.com"]
[Source "ChessBase"]
[SourceQuality "1"]
[TimeControl "5400+30"]

1. e4 {[%emt 0:00:08]} d6 {[%emt 0:00:48]} 2. d4 {[%emt 0:00:42]} Nf6 {[%emt 0:00:07]} 3. Nc3 {[%emt 0:00:35]} e5 {[%emt 0:00:04]} 4. Nf3 {[%emt 0:01:01]} Nbd7 {[%emt 0:01:18]} 5. Bc4 {[%emt 0:05:31]} Be7 {[%emt 0:00:37]} 6. O-O {[%emt 0:01:14]} O-O {[%emt 0:02:30]} 7. a4 {[%emt 0:02:11]} c6 {[%emt 0:02:21]} 8. Ba2 {[%emt 0:07:10]} h6 {[%emt 0:03:38]} 9. dxe5 {[%emt 0:04:50]} dxe5 {[%emt 0:13:53]} 10. Qe2 {[%emt 0:00:48]} a5 {[%emt 0:01:43]} 11. h3 {[%emt 0:05:57]} Nh7 {[%emt 0:04:21]} 12. Be3 {[%emt 0:05:28]} Qc7 {[%emt 0:05:13]} 13. Nd2 {[%emt 0:11:44]} Bg5 {[%emt 0:13:43]} 14. Nc4 {[%emt 0:02:32]} Bxe3 {[%emt 0:04:47]} 15. Qxe3 {[%emt 0:03:37]} Ng5 {[%emt 0:06:34]} 16. Rad1 {[%emt 0:05:58]} Ne6 {[%emt 0:05:02]} 17. Ne2 {[%emt 0:03:38]} Ndc5 {[%emt 0:02:16]} 18. b3 {[%emt 0:09:03]} b5 {[%emt 0:14:02]} 19. Nd6 {[%emt 0:06:35]} b4 {[%emt 0:04:01]} 20. f4 {[%emt 0:03:24]} exf4 {[%emt 0:01:43]} 21. Nxf4 {[%emt 0:00:10]} Ba6 {[%emt 0:04:12]} 22. Nxe6 {[%emt 0:01:11]} Nxe6 {[%emt 0:00:16]} 23. Rf2 {[%emt 0:00:20]} Qa7 {[%emt 0:05:54]} 24. Qg3 {[%emt 0:01:55]} Nd4 {[%emt 0:01:54]} 25. Kh1 {[%emt 0:06:25]} Rad8 {[%emt 0:01:27]} 26. Rdd2 {[%emt 0:01:15]} Ne6 {[%emt 0:00:26]} 27. e5 {[%emt 0:01:36]} Rd7 {[%emt 0:00:34]} 28. c4 {[%emt 0:01:53]} bxc3 {[%emt 0:00:28]} 29. Qxc3 {[%emt 0:00:02]} Qc5 {[%emt 0:00:36]} 30. Qg3 {[%emt 0:01:02]} Ng5 {[%emt 0:00:27]} 31. Rc2 {[%emt 0:02:34]} Qb6 {[%emt 0:00:34]} 32. Rf4 {[%emt 0:01:13]} Re7 {[%emt 0:00:26]} 33. Rg4 {[%emt 0:00:53]} Bc8 {[%emt 0:00:30]} 34. Rgc4 {[%emt 0:00:46]} Bd7 {[%emt 0:00:27]} 35. h4 {[%emt 0:00:13]} Nh7 {[%emt 0:00:34]} 36. Re2 {[%emt 0:00:57]} Be6 {[%emt 0:00:25]} 37. Rf4 {[%emt 0:00:36]} Qc5 {[%emt 0:00:23]} 38. Bb1 {[%emt 0:00:23]} Rb8 {[%emt 0:00:22]} 39. Bc2 {[%emt 0:01:28]} Rb4 {[%emt 0:00:47]} 40. Ne4 {[%emt 0:00:35]} Qxe5 {[%emt 0:00:35]} 41. Nf6+ {[%emt 0:00:29]} Qxf6 {[%emt 0:00:01]} 42. Bxh7+ {[%emt 0:01:50]} Kxh7 {[%emt 0:00:01]} 43. Rxf6 {[%emt 0:00:05]} gxf6 {[%emt 0:00:04]} 44. Kg1 {[%emt 0:02:01]} Rd7 {[%emt 0:00:24]} 45. Qc3 {[%emt 0:00:27]} f5 {[%emt 0:01:34]} 46. Qe5 {[%emt 0:00:30]} Rd5 {[%emt 0:00:19]} 47. Qc7 {[%emt 0:00:14]} Rd7 {[%emt 0:00:37]} 48. Qe5 {[%emt 0:00:34]} Rd5 {[%emt 0:00:05]} 49. Qf6 {[%emt 0:00:34]} Rd1+ {[%emt 0:00:30]} 50. Kh2 {[%emt 0:00:07]} Rdd4 {[%emt 0:00:18]} 51. h5 {[%emt 0:00:45]} c5 {[%emt 0:01:35]} 52. Rxe6 {[%emt 0:00:21]} fxe6 {[%emt 0:00:06]} 53. Qg6+ {[%emt 0:00:20]} Kh8 {[%emt 0:00:02]} 54. Qxh6+ {[%emt 0:00:03]} Kg8 {[%emt 0:00:06]} 55. Qxe6+ {[%emt 0:00:28]} Kg7 {[%emt 0:00:39]} 56. Qg6+ {[%emt 0:00:07]} Kh8 {[%emt 0:00:04]} 57. Qf6+ {[%emt 0:00:26]} Kg8 {[%emt 0:00:10]} 58. Qe6+ {[%emt 0:01:26]} Kg7 {[%emt 0:00:06]} 59. Qg6+ {[%emt 0:00:50]} Kh8 {[%emt 0:00:02]} 60. Qxf5 {[%emt 0:00:23]} Rh4+ {[%emt 0:02:02]} 61. Kg1 {[%emt 0:00:28]} Rhg4 {[%emt 0:00:52]} 62. Qxc5 {[%emt 0:00:29]} Kg7 {[%emt 0:00:37]} 63. Qxa5 {[%emt 0:00:30]} Kh6 {[%emt 0:00:37]} 64. Qe5 {[%emt 0:00:15]} Rbe4 {[%emt 0:00:12]} 65. Qd5 {[%emt 0:00:44]} Rd4 {[%emt 0:00:11]} 66. Qf3 {[%emt 0:00:57]} Rdf4 {[%emt 0:00:20]} 67. Qe3 {[%emt 0:00:13]} Kxh5 {[%emt 0:00:06]} 68. a5 {[%emt 0:00:08]} Re4 {[%emt 0:00:24]} 69. Qd2 {[%emt 0:00:20]} Rd4 {[%emt 0:00:07]} 70. Qc2 {[%emt 0:00:36]} Rge4 {[%emt 0:00:53]} 71. a6 {[%emt 0:00:30]} Kg4 {[%emt 0:00:34]} 72. a7 {[%emt 0:00:31]} Re1+ {[%emt 0:00:37]} 73. Kf2 {[%emt 0:00:28]} Re6 {[%emt 0:00:27]} 74. a8=Q {[%emt 0:00:30]} Rf4+ {[%emt 0:00:02]} 75. Qf3+ {[%emt 0:00:07]} Rxf3+ {[%emt 0:00:03]} 76. gxf3+ {[%emt 0:00:05]} 1-0

[Event "1st Bangalore GM-Open-A 2024"]
[Site "Bangalore"]
[Date "2024.01.18"]
[Round "1.36"]
[White "Mahindrakar Indrajeet"]
[Black "Venkatesh, M.R."]
[Result "1/2-1/2"]
[ECO "D00"]
[WhiteElo "2039"]
[BlackElo "2392"]
[Annotator "RC"]
[PlyCount "97"]
[EventDate "2024.01.20"]
[EventType "swiss"]
[EventCountry "IND"]
[SourceTitle "playchess.com"]
[Source "ChessBase"]
[SourceQuality "1"]
[TimeControl "5400+30"]

1. d4 {[%emt 0:00:11]} Nf6 {[%emt 0:00:20]} 2. Bg5 {[%emt 0:00:16]} d5 {[%emt 0:02:05]} 3. Bxf6 {[%emt 0:00:29]} exf6 {[%emt 0:00:18]} 4. e3 {[%emt 0:00:08]} c6 {[%emt 0:01:24]} 5. g3 {[%emt 0:01:35]} Bd6 {[%emt 0:00:49]} 6. Bg2 {[%emt 0:00:37]} Bf5 {[%emt 0:02:44]} 7. Ne2 {[%emt 0:01:54]} Na6 {[%emt 0:00:17]} 8. a3 {[%emt 0:05:53]} Qd7 {[%emt 0:01:01]} 9. Nd2 {[%emt 0:09:35]} Bh3 {[%emt 0:07:10]} 10. Bxh3 {[%emt 0:04:45]} Qxh3 {[%emt 0:02:59]} 11. c4 {[%emt 0:01:18]} O-O {[%emt 0:03:32]} 12. Qb3 {[%emt 0:05:32]} Rab8 {[%emt 0:13:23]} 13. cxd5 {[%emt 0:03:54]} Qg2 {[%emt 0:00:09]} 14. Rg1 {[%emt 0:00:13]} Qxh2 {[%emt 0:04:17]} 15. dxc6 {[%emt 0:06:56]} bxc6 {[%emt 0:08:12]} 16. Qa4 {[%emt 0:01:08]} Nc7 {[%emt 0:06:50]} 17. Qxc6 {[%emt 0:31:10]} Rb6 {[%emt 0:00:20]} 18. Qd7 {[%emt 0:07:38]} Ne6 {[%emt 0:07:58]} 19. Nc4 {[%emt 0:01:42]} Rd8 {[%emt 0:00:09]} 20. Qxa7 {[%emt 0:01:43]} Rc6 {[%emt 0:02:31]} 21. Nxd6 {[%emt 0:08:05]} Rcxd6 {[%emt 0:00:56]} 22. Qb7 {[%emt 0:01:15]} Qh5 {[%emt 0:01:02]} 23. Nf4 {[%emt 0:03:56]} Qa5+ {[%emt 0:00:30]} 24. Qb4 {[%emt 0:00:48]} Qc7 {[%emt 0:00:09]} 25. Nxe6 {[%emt 0:00:39]} fxe6 {[%emt 0:00:06]} 26. Kf1 {[%emt 0:01:10]} Rc6 {[%emt 0:02:13]} 27. Kg2 {[%emt 0:00:20]} Rb8 {[%emt 0:00:09]} 28. Qa4 {[%emt 0:00:16]} Qb7 {[%emt 0:07:53]} 29. d5 {[%emt 0:00:42]} exd5 {[%emt 0:00:12]} 30. Rgd1 {[%emt 0:00:14]} Rc4 {[%emt 0:01:57]} 31. b4 {[%emt 0:00:55]} Rc3 {[%emt 0:01:26]} 32. Rd4 {[%emt 0:00:21]} Ra8 {[%emt 0:07:34]} 33. Qd1 {[%emt 0:00:01]} Raxa3 {[%emt 0:00:47]} 34. Rxa3 {[%emt 0:00:09]} Rxa3 {[%emt 0:00:05]} 35. e4 {[%emt 0:00:22]} h6 {[%emt 0:07:03]} 36. exd5 {[%emt 0:00:15]} Qa6 {[%emt 0:00:19]} 37. Qg4 {[%emt 0:01:32]} Ra1 {[%emt 0:02:42]} 38. Rc4 {[%emt 0:00:26]} f5 {[%emt 0:01:04]} 39. Qd4 {[%emt 0:00:25]} Re1 {[%emt 0:00:56]} 40. Qc5 {[%emt 0:01:04]} Rd1 {[%emt 0:02:26]} 41. b5 {[%emt 0:00:26]} Qg6 {[%emt 0:00:53]} 42. Rc1 {[%emt 0:00:44]} Rd2 {[%emt 0:00:46]} 43. b6 {[%emt 0:00:34]} f4 {[%emt 0:00:06]} 44. b7 {[%emt 0:00:32]} Qxg3+ {[%emt 0:00:32]} 45. Kf1 {[%emt 0:00:27]} Qd3+ {[%emt 0:00:14]} 46. Kg1 {[%emt 0:00:12]} Qg6+ {[%emt 0:00:05]} 47. Kf1 {[%emt 0:00:10]} Qd3+ {[%emt 0:00:04]} 48. Kg1 {[%emt 0:00:24]} Qg6+ {[%emt 0:00:18]} 49. Kf1 {[%emt 0:00:19]} 1/2-1/2

[Event "1st Bangalore GM-Open-A 2024"]
[Site "Bangalore"]
[Date "2024.01.18"]
[Round "1.37"]
[White "Ritviz, Parab"]
[Black "Swati Ghate"]
[Result "1-0"]
[ECO "C54"]
[WhiteElo "2391"]
[BlackElo "2034"]
[Annotator "RC"]
[PlyCount "59"]
[EventDate "2024.01.20"]
[EventType "swiss"]
[EventCountry "IND"]
[SourceTitle "playchess.com"]
[Source "ChessBase"]
[SourceQuality "1"]
[TimeControl "5400+30"]

1. e4 {[%emt 0:00:18]} e5 {[%emt 0:01:37]} 2. Nf3 {[%emt 0:00:17]} Nc6 {[%emt 0:00:13]} 3. Bc4 {[%emt 0:00:18]} Bc5 {[%emt 0:00:20]} 4. O-O {[%emt 0:01:36]} d6 {[%emt 0:03:05]} 5. c3 {[%emt 0:01:46]} Nf6 {[%emt 0:00:56]} 6. d3 {[%emt 0:07:39]} a6 {[%emt 0:00:53]} 7. Bb3 {[%emt 0:00:22]} h6 {[%emt 0:04:32]} 8. Re1 {[%emt 0:01:25]} O-O {[%emt 0:01:58]} 9. Nbd2 {[%emt 0:01:16]} Ba7 {[%emt 0:03:05]} 10. Nf1 {[%emt 0:01:22]} Ne7 {[%emt 0:00:11]} 11. d4 {[%emt 0:15:33]} Ng6 {[%emt 0:00:15]} 12. h3 {[%emt 0:02:44]} Re8 {[%emt 0:07:59]} 13. Ng3 {[%emt 0:00:30]} Be6 {[%emt 0:06:49]} 14. Be3 {[%emt 0:09:30]} Bxb3 {[%emt 0:08:20]} 15. Qxb3 {[%emt 0:01:16]} Qc8 {[%emt 0:05:16]} 16. Rad1 {[%emt 0:17:13]} b5 {[%emt 0:02:01]} 17. c4 {[%emt 0:03:23]} exd4 {[%emt 0:13:51]} 18. Bxd4 {[%emt 0:01:53]} Ne5 {[%emt 0:01:05]} 19. c5 {[%emt 0:16:23]} Nxf3+ {[%emt 0:15:23]} 20. Qxf3 {[%emt 0:00:05]} Re6 {[%emt 0:00:12]} 21. Nf5 {[%emt 0:01:37]} Ne8 {[%emt 0:12:18]} 22. b4 {[%emt 0:10:57]} dxc5 {[%emt 0:02:23]} 23. bxc5 {[%emt 0:00:03]} Kf8 {[%emt 0:01:36]} 24. Qc3 {[%emt 0:02:44]} f6 {[%emt 0:02:12]} 25. e5 {[%emt 0:00:30]} c6 {[%emt 0:04:54]} 26. Qf3 {[%emt 0:01:00]} Bb8 {[%emt 0:01:19]} 27. exf6 {[%emt 0:01:24]} Nxf6 {[%emt 0:00:03]} 28. Nxh6 {[%emt 0:00:09]} Ra7 {[%emt 0:00:58]} 29. Rxe6 {[%emt 0:01:02]} Qxe6 {[%emt 0:00:03]} 30. Bxf6 {[%emt 0:00:05]} 1-0

[Event "1st Bangalore GM-Open-A 2024"]
[Site "Bangalore"]
[Date "2024.01.18"]
[Round "1.38"]
[White "Vignesh Advaith Vemula"]
[Black "Thilakarathne, G M H"]
[Result "0-1"]
[ECO "C70"]
[WhiteElo "2028"]
[BlackElo "2391"]
[Annotator "RC"]
[PlyCount "136"]
[EventDate "2024.01.20"]
[EventType "swiss"]
[EventCountry "IND"]
[SourceTitle "playchess.com"]
[Source "ChessBase"]
[SourceQuality "1"]
[TimeControl "5400+30"]

1. e4 {[%emt 0:00:03]} e5 {[%emt 0:00:01]} 2. Nf3 {[%emt 0:00:20]} Nc6 {[%emt 0:00:06]} 3. Bb5 {[%emt 0:00:55]} a6 {[%emt 0:00:01]} 4. Ba4 {[%emt 0:00:06]} g6 {[%emt 0:00:07]} 5. c3 {[%emt 0:03:43]} Bg7 {[%emt 0:00:05]} 6. d4 {[%emt 0:08:31]} exd4 {[%emt 0:00:05]} 7. cxd4 {[%emt 0:01:12]} b5 {[%emt 0:00:12]} 8. Bb3 {[%emt 0:06:35]} Nge7 {[%emt 0:04:20]} 9. O-O {[%emt 0:06:33]} d6 {[%emt 0:00:34]} 10. h3 {[%emt 0:02:12]} O-O {[%emt 0:07:38]} 11. Nc3 {[%emt 0:06:17]} Na5 {[%emt 0:10:08]} 12. Bc2 {[%emt 0:01:16]} c5 {[%emt 0:07:08]} 13. Bf4 {[%emt 0:17:39]} cxd4 {[%emt 0:07:23]} 14. Nxd4 {[%emt 0:06:12]} Nc4 {[%emt 0:03:47]} 15. b3 {[%emt 0:03:00]} Na3 {[%emt 0:06:11]} 16. Nce2 {[%emt 0:00:21]} Nxc2 {[%emt 0:12:11]} 17. Qxc2 {[%emt 0:00:13]} Bb7 {[%emt 0:00:22]} 18. Rad1 {[%emt 0:00:58]} Rc8 {[%emt 0:18:31]} 19. Qd3 {[%emt 0:01:51]} Re8 {[%emt 0:03:52]} 20. Rfe1 {[%emt 0:02:23]} Qb6 {[%emt 0:03:42]} 21. Ng3 {[%emt 0:03:51]} b4 {[%emt 0:02:53]} 22. Nde2 {[%emt 0:05:53]} d5 {[%emt 0:01:18]} 23. e5 {[%emt 0:06:14]} Nc6 {[%emt 0:00:56]} 24. Be3 {[%emt 0:00:35]} d4 {[%emt 0:00:19]} 25. Nxd4 {[%emt 0:01:44]} Nxe5 {[%emt 0:00:16]} 26. Qe2 {[%emt 0:00:10]} Qf6 {[%emt 0:02:00]} 27. Qd2 {[%emt 0:02:58]} Nc6 {[%emt 0:01:58]} 28. Nf3 {[%emt 0:02:01]} Red8 {[%emt 0:02:00]} 29. Qe2 {[%emt 0:01:23]} Ne5 {[%emt 0:00:21]} 30. Rxd8+ {[%emt 0:04:57]} Rxd8 {[%emt 0:00:46]} 31. Nxe5 {[%emt 0:00:10]} Qxe5 {[%emt 0:00:11]} 32. Rd1 {[%emt 0:00:25]} Rxd1+ {[%emt 0:03:12]} 33. Qxd1 {[%emt 0:00:04]} Qd5 {[%emt 0:00:22]} 34. Qxd5 {[%emt 0:02:48]} Bxd5 {[%emt 0:00:01]} 35. Ne2 {[%emt 0:00:35]} Be4 {[%emt 0:02:13]} 36. Bc5 {[%emt 0:00:33]} Bb1 {[%emt 0:01:21]} 37. Bxb4 {[%emt 0:00:17]} Bxa2 {[%emt 0:00:08]} 38. Nc1 {[%emt 0:00:04]} Bb1 {[%emt 0:00:04]} 39. Bd2 {[%emt 0:01:29]} Kf8 {[%emt 0:00:18]} 40. Kf1 {[%emt 0:00:11]} Ke7 {[%emt 0:00:44]} 41. Ke2 {[%emt 0:00:23]} Kd6 {[%emt 0:01:24]} 42. Bf4+ {[%emt 0:02:00]} Kc6 {[%emt 0:01:43]} 43. Kd2 {[%emt 0:00:17]} Be4 {[%emt 0:00:20]} 44. g3 {[%emt 0:00:21]} f6 {[%emt 0:00:13]} 45. h4 {[%emt 0:00:46]} h6 {[%emt 0:00:06]} 46. Nd3 {[%emt 0:00:43]} g5 {[%emt 0:00:24]} 47. hxg5 {[%emt 0:00:52]} fxg5 {[%emt 0:00:22]} 48. Be5 {[%emt 0:00:27]} Bf8 {[%emt 0:00:11]} 49. Bf6 {[%emt 0:00:12]} Kb5 {[%emt 0:00:24]} 50. Kc3 {[%emt 0:01:38]} Bd5 {[%emt 0:01:04]} 51. f4 {[%emt 0:00:30]} gxf4 {[%emt 0:00:09]} 52. Nxf4 {[%emt 0:00:15]} Bf7 {[%emt 0:00:10]} 53. Nd3 {[%emt 0:00:32]} Bd6 {[%emt 0:00:56]} 54. Be5 {[%emt 0:00:14]} Be7 {[%emt 0:00:19]} 55. Bd4 {[%emt 0:01:05]} Be6 {[%emt 0:00:47]} 56. Nf4 {[%emt 0:00:21]} Bb4+ {[%emt 0:00:33]} 57. Kb2 {[%emt 0:00:19]} Bg4 {[%emt 0:00:32]} 58. Nd5 {[%emt 0:00:43]} Bd6 {[%emt 0:00:13]} 59. Nc3+ {[%emt 0:00:48]} Kc6 {[%emt 0:00:29]} 60. Ne4 {[%emt 0:00:12]} Bc7 {[%emt 0:00:36]} 61. Bf2 {[%emt 0:00:56]} Bf5 {[%emt 0:00:27]} 62. Nc3 {[%emt 0:00:20]} Be5 {[%emt 0:00:08]} 63. Be1 {[%emt 0:00:07]} Kc5 {[%emt 0:00:12]} 64. Ka3 {[%emt 0:00:47]} Kd4 {[%emt 0:00:08]} 65. Bd2 {[%emt 0:00:40]} Kd3 {[%emt 0:00:20]} 66. Bxh6 {[%emt 0:00:44]} Bxc3 {[%emt 0:00:12]} 67. Bf8 {[%emt 0:00:31]} Kc2 {[%emt 0:00:12]} 68. b4 {[%emt 0:00:32]} Bd7 {[%emt 0:00:05]} 0-1

[Event "1st Bangalore GM-Open-A 2024"]
[Site "Bangalore"]
[Date "2024.01.18"]
[Round "1.39"]
[White "Aradhya, Garg"]
[Black "Badrinath, S.."]
[Result "1/2-1/2"]
[ECO "A49"]
[WhiteElo "2390"]
[BlackElo "2026"]
[Annotator "RC"]
[PlyCount "183"]
[EventDate "2024.01.20"]
[EventType "swiss"]
[EventCountry "IND"]
[SourceTitle "playchess.com"]
[Source "ChessBase"]
[SourceQuality "1"]
[TimeControl "5400+30"]

1. d4 {[%emt 0:00:04]} Nf6 {[%emt 0:00:30]} 2. Nf3 {[%emt 0:00:33]} g6 {[%emt 0:00:16]} 3. g3 {[%emt 0:00:11]} Bg7 {[%emt 0:00:21]} 4. Bg2 {[%emt 0:00:02]} O-O {[%emt 0:00:12]} 5. O-O {[%emt 0:00:07]} d6 {[%emt 0:00:21]} 6. Nc3 {[%emt 0:01:16]} Nbd7 {[%emt 0:01:19]} 7. a4 {[%emt 0:00:16]} a5 {[%emt 0:04:15]} 8. b3 {[%emt 0:04:11]} Re8 {[%emt 0:03:14]} 9. Ba3 {[%emt 0:02:58]} e5 {[%emt 0:03:42]} 10. dxe5 {[%emt 0:00:08]} Ng4 {[%emt 0:01:28]} 11. Qd2 {[%emt 0:04:01]} Ngxe5 {[%emt 0:02:53]} 12. Nxe5 {[%emt 0:00:40]} Nxe5 {[%emt 0:00:26]} 13. Rad1 {[%emt 0:00:19]} h5 {[%emt 0:03:04]} 14. h3 {[%emt 0:11:22]} Bd7 {[%emt 0:03:50]} 15. Kh2 {[%emt 0:09:35]} Qc8 {[%emt 0:09:40]} 16. Nd5 {[%emt 0:00:19]} Qd8 {[%emt 0:09:46]} 17. Nxc7 {[%emt 0:05:08]} Qxc7 {[%emt 0:03:11]} 18. Bxd6 {[%emt 0:00:07]} Qb6 {[%emt 0:09:54]} 19. Bxe5 {[%emt 0:00:16]} Rxe5 {[%emt 0:02:45]} 20. Qxd7 {[%emt 0:00:05]} Rxe2 {[%emt 0:00:20]} 21. Qxb7 {[%emt 0:10:36]} Qxb7 {[%emt 0:00:56]} 22. Bxb7 {[%emt 0:00:02]} Rb8 {[%emt 0:01:57]} 23. Ba6 {[%emt 0:01:29]} Rxc2 {[%emt 0:00:29]} 24. Bc4 {[%emt 0:00:09]} Bc3 {[%emt 0:02:06]} 25. Rd7 {[%emt 0:05:40]} Rf8 {[%emt 0:01:20]} 26. Rc7 {[%emt 0:00:24]} Rd2 {[%emt 0:01:12]} 27. Bxf7+ {[%emt 0:00:57]} Rxf7 {[%emt 0:00:05]} 28. Rxc3 {[%emt 0:00:06]} Rfxf2+ {[%emt 0:00:13]} 29. Rxf2 {[%emt 0:00:02]} Rxf2+ {[%emt 0:00:07]} 30. Kg1 {[%emt 0:00:06]} Rb2 {[%emt 0:00:47]} 31. Rc6 {[%emt 0:01:39]} Kg7 {[%emt 0:05:08]} 32. Rb6 {[%emt 0:00:20]} g5 {[%emt 0:01:51]} 33. Kf1 {[%emt 0:08:43]} h4 {[%emt 0:05:19]} 34. gxh4 {[%emt 0:01:54]} gxh4 {[%emt 0:00:02]} 35. Rb5 {[%emt 0:00:57]} Kg6 {[%emt 0:01:11]} 36. Ke1 {[%emt 0:01:07]} Kh6 {[%emt 0:01:52]} 37. Kd1 {[%emt 0:05:41]} Kg6 {[%emt 0:00:21]} 38. Kc1 {[%emt 0:02:44]} Rh2 {[%emt 0:00:30]} 39. Rxa5 {[%emt 0:00:06]} Rxh3 {[%emt 0:00:04]} 40. Kb2 {[%emt 0:00:12]} Rf3 {[%emt 0:02:18]} 41. Ra8 {[%emt 0:04:19]} Rf7 {[%emt 0:01:33]} 42. Rg8+ {[%emt 0:02:27]} Rg7 {[%emt 0:00:39]} 43. Rd8 {[%emt 0:00:08]} h3 {[%emt 0:02:51]} 44. Rd1 {[%emt 0:01:12]} h2 {[%emt 0:00:00]} 45. Rh1 {[%emt 0:00:45]} Rh7 {[%emt 0:00:24]} 46. a5 {[%emt 0:00:21]} Kf5 {[%emt 0:01:41]} 47. a6 {[%emt 0:13:37]} Ke5 {[%emt 0:00:15]} 48. a7 {[%emt 0:01:07]} Rxa7 {[%emt 0:00:33]} 49. Rxh2 {[%emt 0:00:02]} Kd5 {[%emt 0:01:17]} 50. Rc2 {[%emt 0:00:59]} Kd6 {[%emt 0:00:22]} 51. Rc4 {[%emt 0:00:01]} Rc7 {[%emt 0:01:12]} 52. Rb4 {[%emt 0:00:35]} Kc6 {[%emt 0:01:12]} 53. Kc3 {[%emt 0:00:07]} Rh7 {[%emt 0:00:41]} 54. Rg4 {[%emt 0:00:06]} Kb6 {[%emt 0:00:32]} 55. Kb4 {[%emt 0:00:06]} Kb7 {[%emt 0:00:26]} 56. Rg6 {[%emt 0:00:09]} Rh4+ {[%emt 0:00:12]} 57. Kb5 {[%emt 0:00:07]} Rh5+ {[%emt 0:00:10]} 58. Ka4 {[%emt 0:00:02]} Rh4+ {[%emt 0:00:14]} 59. b4 {[%emt 0:00:06]} Rh5 {[%emt 0:00:38]} 60. Rf6 {[%emt 0:00:06]} Rg5 {[%emt 0:00:10]} 61. Re6 {[%emt 0:00:20]} Rh5 {[%emt 0:00:17]} 62. Re4 {[%emt 0:00:17]} Rh1 {[%emt 0:00:28]} 63. Rg4 {[%emt 0:00:07]} Rh5 {[%emt 0:00:38]} 64. Rf4 {[%emt 0:00:01]} Rg5 {[%emt 0:00:14]} 65. Rc4 {[%emt 0:00:06]} Kb6 {[%emt 0:00:16]} 66. Rf4 {[%emt 0:00:07]} Kb7 {[%emt 0:00:04]} 67. Re4 {[%emt 0:00:09]} Rh5 {[%emt 0:00:06]} 68. Rg4 {[%emt 0:00:08]} Rf5 {[%emt 0:00:06]} 69. Rg7+ {[%emt 0:00:15]} Kb6 {[%emt 0:00:06]} 70. Rh7 {[%emt 0:00:04]} Rg5 {[%emt 0:00:09]} 71. Rh6+ {[%emt 0:00:06]} Kb7 {[%emt 0:00:08]} 72. Rf6 {[%emt 0:00:17]} Rh5 {[%emt 0:00:07]} 73. Re6 {[%emt 0:00:10]} Rg5 {[%emt 0:00:05]} 74. Rh6 {[%emt 0:00:06]} Rf5 {[%emt 0:00:08]} 75. b5 {[%emt 0:00:12]} Rf1 {[%emt 0:00:27]} 76. Rh3 {[%emt 0:00:07]} Ra1+ {[%emt 0:00:12]} 77. Kb4 {[%emt 0:00:02]} Rb1+ {[%emt 0:00:07]} 78. Rb3 {[%emt 0:00:02]} Rxb3+ {[%emt 0:00:16]} 79. Kxb3 {[%emt 0:00:01]} Kb6 {[%emt 0:00:07]} 80. Kb4 {[%emt 0:00:03]} Kb7 {[%emt 0:00:08]} 81. Ka5 {[%emt 0:00:06]} Ka7 {[%emt 0:00:09]} 82. Kb4 {[%emt 0:00:04]} Kb6 {[%emt 0:00:05]} 83. Kc4 {[%emt 0:00:02]} Kb7 {[%emt 0:00:09]} 84. Kc5 {[%emt 0:00:02]} Kc7 {[%emt 0:00:05]} 85. b6+ {[%emt 0:00:03]} Kb7 {[%emt 0:00:05]} 86. Kb5 {[%emt 0:00:04]} Kb8 {[%emt 0:00:05]} 87. Ka6 {[%emt 0:00:03]} Ka8 {[%emt 0:00:04]} 88. Ka5 {[%emt 0:00:02]} Kb7 {[%emt 0:00:07]} 89. Kb5 {[%emt 0:00:02]} Kb8 {[%emt 0:00:14]} 90. Kc6 {[%emt 0:00:03]} Kc8 {[%emt 0:00:06]} 91. b7+ {[%emt 0:00:02]} Kb8 {[%emt 0:00:04]} 92. Kb6 {[%emt 0:00:02]} 1/2-1/2